bitfinex/quotes_SOLUSD_20241020
["timestamp","ask_amount","ask_price","bid_price","bid_amount"]
[1729419250924,16.15476351,159.22,159.13,28.70147052]
[1729419253200,15.4003,159.22,159.13,12.17627052]
[1729419253417,15.4003,159.22,159.14,20.0]
[1729419253718,15.4003,159.22,159.13,12.17627052]
[1729419253917,16.11858425,159.22,159.13,12.17627052]
[1729419254800,23.776884,159.21,159.13,12.17627052]
[1729419258703,6.3709,159.2,159.13,12.17627052]
[1729419258909,23.776884,159.19,159.13,12.17627052]
[1729419267129,23.776884,159.19,159.13,6.55530032]
[1729419300940,16.11858425,159.22,159.13,6.55530032]
[1729419301151,0.71828425,159.22,159.14,16.2768]
[1729419302242,6.6578,159.24,159.14,16.2768]
[1729419302445,6.6578,159.24,159.15,5.99]
[1729419304350,7.35066959,159.24,159.15,5.99]
[1729419310451,23.776884,159.23,159.15,5.99]
[1729419313455,23.776884,159.21,159.14,6.55574148]
[1729419313655,23.776884,159.21,159.12,5.54054645]
[1729419314571,23.776884,159.21,159.12,6.55722487]
[1729419318883,23.776884,159.19,159.12,6.55722487]
[1729419319177,23.776884,159.19,159.07,16.3038]
[1729419319566,23.776884,159.19,159.09,6.55796726]
[1729419320674,23.776884,159.17,159.09,6.55796726]
[1729419334493,0.69310214,159.18,159.09,6.55796726]
[1729419360626,23.776884,159.19,159.09,6.55796726]
[1729419368615,6.2307,159.16,159.09,6.55796726]
[1729419368918,23.776884,159.15,159.07,5.45870971]
[1729419369228,23.776884,159.15,159.06,6.5583629]
[1729419376317,23.776884,159.13,159.06,6.5583629]
[1729419388058,15.1929,159.14,159.06,6.5583629]
[1729419388217,23.776884,159.15,159.06,6.5583629]
[1729419392344,23.776884,159.15,159.07,20.0]
[1729419392737,15.1929,159.18,159.07,35.7766]
[1729419393932,23.776884,159.17,159.07,35.7766]
[1729419397148,23.776884,159.17,159.07,41.27250979]
[1729419398451,23.776884,159.17,159.07,5.49590979]
[1729419398639,23.776884,159.15,159.06,6.55736738]
[1729419400233,23.776884,159.15,159.06,12.22468615]
[1729419401437,6.4071,159.16,159.07,20.0]
[1729419442871,6.4071,159.16,159.06,12.22531075]
[1729419442872,15.6572,159.14,159.06,12.22531075]
[1729419445280,23.776884,159.13,159.06,12.22531075]
[1729419457781,23.776884,159.11,159.06,6.55799198]
[1729419464270,6.448,159.12,159.06,6.55799198]
[1729419464459,15.6572,159.14,159.06,6.55799198]
[1729419465491,23.776884,159.13,159.06,6.55799198]
[1729419479697,15.6572,159.14,159.06,6.55799198]
[1729419480306,6.448,159.16,159.06,6.55799198]
[1729419482501,15.8039,159.18,159.08,20.0]
[1729419482880,15.8039,159.18,159.09,5.71449691]
[1729419483884,15.8039,159.18,159.1,20.0]
[1729419485301,15.8039,159.18,159.09,20.0]
[1729419489393,15.8039,159.18,159.09,25.61036878]
[1729419497909,15.8039,159.18,159.09,31.32486569]
[1729419503598,23.776884,159.17,159.09,11.32486569]
[1729419503788,6.1987,159.16,159.09,5.61036878]
[1729419503991,6.1987,159.16,159.08,6.55791054]
[1729419503992,23.776884,159.15,159.08,6.55791054]
[1729419510317,23.776884,159.13,159.08,6.55791054]
[1729419510997,23.776884,159.11,159.0,7.21723213]
[1729419511198,23.776884,159.11,159.0,12.93172904]
[1729419511407,23.776884,159.11,159.04,6.5600232]
[1729419511611,23.776884,159.11,159.0,12.93172904]
[1729419511802,23.776884,159.11,159.04,6.56008503]
[1729419512005,23.776884,159.11,159.05,20.0]
[1729419529528,23.776884,159.13,159.05,20.0]
[1729419529735,23.776884,159.13,159.05,25.71449691]
[1729419529911,15.4839,159.14,159.05,25.71449691]
[1729419531138,15.4839,159.14,159.06,5.71449691]
[1729419531310,15.4839,159.14,159.07,20.0]
[1729419540934,23.776884,159.13,159.07,20.0]
[1729419542025,23.776884,159.13,159.06,5.71449691]
[1729419542218,23.776884,159.13,159.05,6.55160913]
[1729419549426,6.0437,159.12,159.05,6.55160913]
[1729419549739,23.776884,159.11,159.05,6.55160913]
[1729419551346,23.776884,159.09,159.05,6.55160913]
[1729419551647,23.776884,159.09,158.99,6.551609]
[1729419551955,23.776884,159.09,159.0,6.55236999]
[1729419552825,23.776884,159.09,159.01,20.0]
[1729419556046,16.0572,159.1,159.01,20.0]
[1729419556552,16.0572,159.1,159.01,25.71449691]
[1729419556758,16.0572,159.1,159.03,20.0]
[1729419556932,6.0437,159.12,159.03,25.71449691]
[1729419557347,6.0437,159.12,159.02,20.0]
[1729419557736,6.0437,159.12,159.04,20.0]
[1729419558925,6.0437,159.12,159.04,5.71449691]
[1729419559357,23.776884,159.11,159.05,20.0]
[1729419560243,23.776884,159.13,159.05,25.71449691]
[1729419560458,15.4087,159.14,159.07,20.0]
[1729419560630,15.4087,159.14,159.07,25.71449691]
[1729419560832,6.2885,159.16,159.08,5.71449691]
[1729419561436,6.2885,159.16,159.09,20.0]
[1729419561960,23.776884,159.15,159.09,20.0]
[1729419563448,23.776884,159.15,159.06,20.0]
[1729419564562,23.776884,159.15,159.06,25.71449691]
[1729419567461,23.776884,159.15,159.07,5.71449691]
[1729419567647,23.776884,159.15,159.08,20.0]
[1729419571867,6.2885,159.16,159.08,20.0]
[1729419572167,6.2885,159.16,159.1,20.0]
[1729419573456,15.4087,159.18,159.1,20.0]
[1729419573764,15.4087,159.18,159.1,25.71449691]
[1729419575062,15.4087,159.18,159.1,31.38761031]
[1729419577778,15.4087,159.18,159.1,25.6731134]
[1729419579981,23.776884,159.17,159.1,20.0]
[1729419580169,23.776884,159.17,159.08,5.71449691]
[1729419581379,23.776884,159.17,159.09,20.0]
[1729419581961,6.4509,159.16,159.09,20.0]
[1729419582161,23.776884,159.15,159.07,20.0]
[1729419582668,23.776884,159.15,159.07,25.43683879]
[1729419588484,23.876884,159.12,159.06,6.54235012]
[1729419588780,23.876884,159.12,159.0,5.56234702]
[1729419589078,23.776884,159.1,158.99,6.53840614]
[1729419589881,23.776884,159.1,159.0,20.0]
[1729419597063,23.776884,159.1,159.0,25.52812519]
[1729419600585,15.3548,159.11,159.0,25.52812519]
[1729419601770,23.776884,159.1,159.0,25.52812519]
[1729419608091,23.776884,159.08,159.0,25.52812519]
[1729419609993,23.776884,159.06,159.0,25.52812519]
[1729419611091,23.776884,159.06,159.0,20.0]
[1729419611695,23.776884,159.04,158.99,6.53902104]
[1729419611900,23.776884,159.04,158.95,20.0801561]
[1729419612194,23.776884,159.04,158.97,20.0]
[1729419617589,23.776884,159.04,158.96,6.52993113]
[1729419637209,23.776884,159.02,158.96,6.52993113]
[1729419637400,23.776884,159.02,158.9,6.59483332]
[1729419637585,23.776884,159.02,158.93,6.53053474]
[1729419637786,23.776884,159.02,158.9,6.59483332]
[1729419637997,23.776884,159.02,158.93,6.53062099]
[1729419638287,23.776884,159.02,158.91,20.0]
[1729419638596,16.0151,159.01,158.93,6.53060737]
[1729419638902,23.776884,159.0,158.93,6.53060737]
[1729419655627,23.776884,158.98,158.93,6.53060737]
[1729419656027,23.776884,158.98,158.9,5.51687141]
[1729419656239,23.776884,158.98,158.89,22.89354413]
[1729419657627,23.776884,158.98,158.9,0.08018132]
[1729419658134,15.2355,158.97,158.9,0.08018132]
[1729419658310,23.776884,158.96,158.9,0.08018132]
[1729419665213,15.2355,158.97,158.9,0.08018132]
[1729419665416,6.6603,158.99,158.9,0.08018132]
[1729419666715,23.776884,158.98,158.9,0.08018132]
[1729419670531,15.2355,159.01,158.91,20.0]
[1729419671035,6.6603,159.03,158.92,5.20894136]
[1729419671235,6.6603,159.03,158.93,20.0]
[1729419672440,23.776884,159.02,158.93,20.0]
[1729419675121,23.776884,159.02,158.92,5.20894136]
[1729419675325,23.776884,159.02,158.9,15.97598132]
[1729419676626,23.776884,159.02,158.91,20.0]
[1729419678629,23.776884,159.02,158.91,25.20894136]
[1729419684552,23.776884,159.02,158.91,30.7114981]
[1729419685550,23.776884,159.02,158.91,25.50255674]
[1729419686648,23.776884,159.02,158.91,30.7114981]
[1729419689930,6.6603,159.03,158.93,20.0]
[1729419690555,15.2355,159.05,158.94,15.7894]
[1729419690849,15.2355,159.05,158.95,20.0]
[1729419692331,23.776884,159.04,158.95,20.0]
[1729419701152,23.776884,159.04,158.95,25.67326184]
[1729419706467,6.34,159.03,158.93,0.08016619]
[1729419706661,23.776884,159.02,158.93,0.08016619]
[1729419707746,23.776884,159.02,158.93,20.08016619]
[1729419708551,23.776884,159.0,158.93,20.08016619]
[1729419709136,23.776884,158.98,158.93,0.08016619]
[1729419720039,15.2568,159.01,158.93,20.08016619]
[1729419721556,15.2568,159.01,158.93,25.28910755]
[1729419722245,23.776884,159.0,158.93,25.28910755]
[1729419723382,23.776884,159.0,158.93,25.20894136]
[1729419727868,23.776884,159.0,158.93,24.70894136]
[1729419732870,23.776884,159.0,158.92,6.57953244]
[1729419733856,23.776884,159.0,158.92,6.49936121]
[1729419734470,23.776884,159.0,158.93,20.0]
[1729419742664,23.776884,159.0,158.92,20.0]
[1729419742865,23.776884,159.0,158.92,26.50077397]
[1729419765503,23.776884,159.0,158.92,31.70971533]
[1729419766707,23.776884,159.0,158.92,26.50077397]
[1729419769805,6.2546,159.03,158.93,5.20894136]
[1729419770004,6.2546,159.03,158.94,20.0]
[1729419771414,23.776884,159.02,158.94,20.0]
[1729419779514,23.776884,159.02,158.94,25.20894136]
[1729419780101,6.2546,159.03,158.94,25.20894136]
[1729419780102,6.2546,159.03,158.95,5.20894136]
[1729419780313,6.2546,159.03,158.96,20.0]
[1729419781487,6.2546,159.03,158.95,20.0]
[1729419784020,21.7119,159.06,158.95,20.0]
[1729419784203,21.7119,159.06,158.97,20.0]
[1729419784400,21.7119,159.06,158.97,25.20894136]
[1729419785917,23.776884,159.05,158.97,25.20894136]
[1729419787724,23.776884,159.05,158.97,20.0]
[1729419792698,23.776884,159.05,158.95,12.18425772]
[1729419793806,23.776884,159.05,158.96,20.0]
[1729419820645,23.776884,159.05,158.97,15.2011]
[1729419820848,23.776884,159.05,158.98,20.0]
[1729419840458,21.7119,159.06,158.98,20.0]
[1729419846254,30.41573644,159.1,158.98,20.0]
[1729419846457,30.41573644,159.1,158.99,4.91998747]
[1729419847251,21.3797,159.1,158.99,4.91998747]
[1729419847642,23.776884,159.09,158.99,4.91998747]
[1729419848042,21.3797,159.1,158.99,4.91998747]
[1729419851641,23.776884,159.09,158.99,4.91998747]
[1729419852762,23.776884,159.09,159.0,20.0]
[1729419855449,23.776884,159.07,159.0,20.0]
[1729419867759,23.776884,159.05,159.0,20.0]
[1729419873872,6.4232,159.06,159.0,20.0]
[1729419875691,15.9246,159.08,159.0,20.0]
[1729419891794,23.776884,159.07,159.0,20.0]
[1729419892395,23.776884,159.07,158.99,12.10328403]
[1729419892898,6.5008,159.06,158.99,12.10328403]
[1729419893803,6.5008,159.06,159.0,20.0]
[1729419899307,23.776884,159.05,159.0,20.0]
[1729419909903,23.776884,159.05,158.99,12.10328403]
[1729419910104,15.4841,159.04,158.99,6.48661737]
[1729419910327,23.776884,159.03,158.94,4.91998747]
[1729419910626,23.776884,159.03,158.94,6.52968314]
[1729419911524,23.776884,159.03,158.94,12.01550661]
[1729419911700,23.776884,159.03,158.95,20.0]
[1729419916618,15.4841,159.04,158.95,20.0]
[1729419916819,6.5008,159.06,158.95,25.28311849]
[1729419917017,6.5008,159.06,158.97,20.0]
[1729419917319,6.5008,159.06,158.97,25.28311849]
[1729419918105,23.776884,159.05,158.97,25.28311849]
[1729419921022,23.776884,159.05,158.97,20.0]
[1729419921707,23.776884,159.05,158.96,20.0]
[1729419930428,23.776884,159.05,158.95,20.0]
[1729419930829,23.776884,159.05,158.95,26.53097978]
[1729419936224,15.054,159.04,158.95,26.53097978]
[1729419936417,23.776884,159.03,158.95,26.53097978]
[1729419940638,6.0211,159.02,158.95,6.53097978]
[1729419940842,23.776884,159.01,158.94,5.48582347]
[1729419941026,23.776884,159.01,158.93,6.53443551]
[1729419942330,23.776884,159.01,158.94,20.0]
[1729419954549,23.776884,159.01,158.93,20.0]
[1729419954723,23.776884,159.01,158.93,26.53497673]
[1729419971555,23.776884,159.01,158.93,31.81809522]
[1729419989768,23.776884,159.01,158.93,26.53497673]
[1729420023087,6.0211,159.02,158.93,26.53497673]
[1729420023295,23.776884,159.01,158.93,26.53497673]
[1729420026477,6.0211,159.02,158.93,26.53497673]
[1729420026777,23.776884,159.01,158.93,26.53497673]
[1729420039190,23.776884,158.99,158.93,26.53497673]
[1729420062928,23.776884,158.99,158.93,6.53497673]
[1729420063218,23.776884,158.99,158.91,0.08017628]
[1729420063835,23.776884,158.99,158.92,20.0]
[1729420067711,23.776884,158.99,158.91,5.6473582]
[1729420074835,23.776884,158.99,158.91,5.56718192]
[1729420075134,23.776884,158.99,158.91,20.0]
[1729420081526,23.776884,158.99,158.91,25.28311849]
[1729420083423,16.373,159.0,158.91,25.28311849]
[1729420087318,23.776884,158.99,158.91,25.28311849]
[1729420093435,23.776884,158.99,158.91,5.28311849]
[1729420093745,23.776884,158.99,158.9,12.12884638]
[1729420095440,23.776884,158.99,158.91,20.0]
[1729420097637,23.776884,158.97,158.91,20.0]
[1729420099453,23.776884,158.97,158.9,5.60311445]
[1729420099748,23.776884,158.97,158.89,20.08018637]
[1729420102247,23.776884,158.97,158.89,25.57578734]
[1729420117632,6.0207,158.98,158.89,25.57578734]
[1729420118055,6.0207,158.98,158.89,30.85890583]
[1729420134747,23.776884,158.97,158.89,30.85890583]
[1729420142370,23.776884,158.97,158.89,25.57578734]
[1729420147945,15.7765,158.96,158.89,25.57578734]
[1729420148361,23.776884,158.95,158.89,25.57578734]
[1729420152255,23.776884,158.95,158.89,20.0]
[1729420152454,6.548,158.94,158.88,6.52627358]
[1729420152676,23.776884,158.93,158.88,6.52627358]
[1729420152856,15.7765,158.92,158.84,6.11727729]
[1729420153052,23.776884,158.91,158.86,6.49294142]
[1729420155865,23.776884,158.91,158.87,0.08019647]
[1729420178693,23.776884,158.91,158.85,20.0]
[1729420182392,23.776884,158.91,158.86,0.04897384]
[1729420190773,6.548,158.94,158.86,0.04897384]
[1729420191091,15.4723,158.96,158.87,20.0]
[1729420192283,23.61767718,158.95,158.87,20.0]
[1729420192488,15.4723,158.96,158.87,20.0]
[1729420192690,15.4723,158.96,158.87,25.28314544]
[1729420192892,9.04257095,158.97,158.87,25.28314544]
[1729420193798,9.04257095,158.97,158.87,31.40042273]
[1729420193976,9.04257095,158.97,158.88,6.11727729]
[1729420194179,9.04257095,158.97,158.89,20.0]
[1729420194775,6.1221,158.98,158.89,20.0]
[1729420195198,23.776884,158.99,158.89,40.59204544]
[1729420195397,23.776884,158.99,158.89,53.31922273]
[1729420195699,15.4723,159.0,158.91,20.0]
[1729420196687,23.776884,158.99,158.91,20.0]
[1729420202005,6.5888,159.02,158.91,20.0]
[1729420202208,6.5888,159.02,158.92,20.0]
[1729420203389,23.776884,159.01,158.92,20.0]
[1729420203711,23.776884,159.01,158.92,5.28314544]
[1729420204117,23.776884,159.01,158.93,20.0]
[1729420204687,6.5888,159.02,158.93,20.0]
[1729420204914,15.6074,159.04,158.95,20.0]
[1729420205212,15.6074,159.04,158.95,25.28314544]
[1729420206005,6.5888,159.06,158.95,25.28314544]
[1729420206627,23.776884,159.05,158.95,25.28314544]
[1729420213003,23.776884,159.05,158.95,30.83655669]
[1729420213716,23.776884,159.05,158.95,25.55341125]
[1729420214017,23.776884,159.03,158.95,20.0]
[1729420241745,15.6074,159.04,158.95,20.0]
[1729420246606,23.776884,159.03,158.95,20.0]
[1729420259234,15.6074,159.04,158.95,20.0]
[1729420259933,15.6074,159.04,158.95,41.37756766]
[1729420260246,6.5888,159.06,158.97,20.0]
[1729420260450,6.5888,159.06,158.97,25.90136766]
[1729420281055,16.3291,159.08,158.99,20.0]
[1729420281760,16.3291,159.08,158.99,5.90136766]
[1729420282450,16.3291,159.08,159.0,20.0]
[1729420286161,16.3291,159.08,159.0,5.90136766]
[1729420286347,16.3291,159.08,159.01,20.0]
[1729420290261,16.3291,159.08,159.01,25.56292204]
[1729420319482,23.776884,159.07,159.01,20.0]
[1729420339105,23.776884,159.04,159.0,6.50383079]
[1729420339309,23.776884,159.02,158.9,15.5699]
[1729420339489,23.776884,159.02,158.91,7.09333471]
[1729420339684,23.776884,159.0,158.94,6.50967606]
[1729420340812,23.776884,159.0,158.95,20.0]
[1729420341205,23.776884,159.0,158.94,6.50967606]
[1729420341721,30.0,158.99,158.94,6.50967606]
[1729420342507,23.776884,159.0,158.95,20.0]
[1729420345913,30.0,158.98,158.95,20.0]
[1729420346603,30.0,158.98,158.91,20.0]
[1729420347004,30.0,158.98,158.93,20.0]
[1729420348308,23.776884,159.0,158.93,20.0]
[1729420350320,23.776884,158.98,158.93,20.0]
[1729420350621,23.776884,158.98,158.9,20.0]
[1729420350796,23.776884,158.98,158.9,26.51079094]
[1729420351698,6.6548,158.99,158.9,32.62806823]
[1729420353208,23.776884,159.0,158.91,15.5699]
[1729420353414,23.776884,159.0,158.92,20.0]
[1729420361308,23.776884,159.0,158.92,25.45620676]
[1729420363818,15.4099,159.01,158.92,25.45620676]
[1729420364013,15.4099,159.01,158.92,31.35757442]
[1729420373520,23.776884,158.98,158.91,6.51380924]
[1729420373915,23.776884,158.98,158.9,0.05992667]
[1729420375138,23.776884,158.98,158.9,20.05992667]
[1729420377735,6.2653,158.97,158.9,20.05992667]
[1729420377942,23.776884,158.96,158.9,20.05992667]
[1729420378122,23.776884,158.96,158.9,0.05992667]
[1729420417668,15.5567,158.95,158.9,0.05992667]
[1729420417862,23.776884,158.94,158.9,0.05992667]
[1729420429875,23.776884,158.94,158.88,26.51223491]
[1729420434967,23.776884,158.94,158.87,0.05993799]
[1729420435376,23.776884,158.94,158.87,20.05993799]
[1729420435579,23.776884,158.94,158.88,0.05993422]
[1729420446184,23.776884,158.92,158.88,0.05993422]
[1729420447883,24.51936765,158.92,158.88,0.05993422]
[1729420496204,24.51936765,158.92,158.85,20.0]
[1729420498695,24.51936765,158.92,158.84,22.95048515]
[1729420499624,24.51936765,158.92,158.85,0.05994553]
[1729420500311,24.51936765,158.92,158.85,20.05994553]
[1729420500508,24.51936765,158.92,158.86,0.05994176]
[1729420530542,0.74248365,158.92,158.86,0.05994176]
[1729420537553,6.3207,158.97,158.86,0.05994176]
[1729420537752,23.776884,158.96,158.86,0.05994176]
[1729420539045,24.52358221,158.96,158.86,0.05994176]
[1729420540236,24.52358221,158.96,158.86,6.57494176]
[1729420540644,24.52358221,158.96,158.87,20.0]
[1729420544837,24.52358221,158.96,158.87,25.60437972]
[1729420545540,0.74669821,158.96,158.87,25.60437972]
[1729420549158,23.776884,158.95,158.87,25.60437972]
[1729420549366,39.991884,158.95,158.87,25.60437972]
[1729420570468,16.215,158.95,158.87,25.60437972]
[1729420571049,0.74669821,158.96,158.87,25.60437972]
[1729420583352,23.776884,158.93,158.86,6.5615875]
[1729420585359,30.426284,158.93,158.86,6.5615875]
[1729420587457,30.426284,158.93,158.86,0.05994176]
[1729420590162,6.2925,158.92,158.86,0.05994176]
[1729420590371,30.426284,158.93,158.86,0.05994176]
[1729420594369,36.718484,158.93,158.86,0.05994176]
[1729420595361,30.426284,158.93,158.86,0.05994176]
[1729420602669,36.718284,158.93,158.86,0.05994176]
[1729420603068,23.776884,158.91,158.86,0.05994176]
[1729420603291,23.776884,158.89,158.86,0.05994176]
[1729420610193,15.7307,158.9,158.86,0.05994176]
[1729420610980,0.7037073,158.91,158.86,0.05994176]
[1729420618204,23.776884,158.93,158.86,0.05994176]
[1729420629011,34.31764108,158.91,158.86,0.05994176]
[1729420629193,24.44648189,158.91,158.86,0.05994176]
[1729420629907,0.66959789,158.91,158.86,0.05994176]
[1729420638527,23.776884,158.91,158.86,0.05994176]
[1729420656518,23.776884,158.91,158.85,0.15736]
[1729420661329,23.776884,158.89,158.85,0.15736]
[1729420725775,15.8828,158.9,158.85,0.15736]
[1729420730269,23.776884,158.91,158.85,0.15736]
[1729420755486,16.4250869,158.92,158.85,0.15736]
[1729420756187,23.776884,158.91,158.85,0.15736]
[1729420756390,24.44798332,158.91,158.85,0.15736]
[1729420758275,16.2896,158.9,158.85,0.15736]
[1729420758473,23.776884,158.89,158.85,0.15736]
[1729420759970,24.44798332,158.89,158.85,0.15736]
[1729420764487,23.776884,158.89,158.85,0.15736]
[1729420765270,24.44801253,158.89,158.85,0.15736]
[1729420767979,23.776884,158.89,158.85,0.15736]
[1729420768388,24.44801253,158.89,158.85,0.15736]
[1729420772988,34.34130571,158.89,158.85,0.15736]
[1729420777493,34.34130571,158.89,158.81,0.65338833]
[1729420792128,34.34130571,158.89,158.81,16.66288833]
[1729420792329,34.34130571,158.89,158.82,20.0]
[1729420797503,24.44801253,158.89,158.82,20.0]
[1729420830535,0.67112853,158.89,158.82,20.0]
[1729420864343,16.109,158.94,158.83,23.776884]
[1729420864544,6.0261,158.96,158.86,20.0]
[1729420864870,16.0766,158.98,158.86,20.0]
[1729420865450,16.0766,158.98,158.88,20.0]
[1729420865763,16.75620203,158.98,158.88,20.0]
[1729420867857,16.75620203,158.98,158.86,20.0]
[1729420868362,6.2908,158.96,158.86,20.0]
[1729420868573,6.0261,158.95,158.86,20.0]
[1729420875060,15.8663,158.94,158.85,16.007]
[1729420875757,15.8663,158.94,158.82,5.96132452]
[1729420876368,15.8663,158.94,158.83,20.0]
[1729420886161,30.068984,158.93,158.83,20.0]
[1729420886360,23.776884,158.93,158.83,20.0]
[1729420886574,30.068984,158.93,158.83,20.0]
[1729420890989,23.776884,158.93,158.83,20.0]
[1729420892971,24.50939743,158.93,158.83,20.0]
[1729420894495,24.50939743,158.93,158.82,20.05995686]
[1729420894796,24.50939743,158.93,158.82,26.61676812]
[1729420898499,23.776884,158.91,158.82,26.61676812]
[1729420898671,30.055684,158.91,158.82,26.61676812]
[1729420900079,6.2788,158.91,158.82,26.61676812]
[1729420918497,15.7018,158.89,158.82,26.61676812]
[1729420919209,15.7018,158.89,158.82,6.61676812]
[1729420920280,15.7018,158.89,158.83,20.0]
[1729420922197,6.2788,158.91,158.83,20.0]
[1729420943119,23.776884,158.9,158.83,20.0]
[1729420959949,24.62123794,158.9,158.83,20.0]
[1729420989647,22.12567613,158.9,158.83,20.0]
[1729420994377,6.2936,158.89,158.83,20.0]
[1729420994560,40.39066265,158.9,158.83,20.0]
[1729420994758,40.39066265,158.9,158.81,0.5934277]
[1729420995774,30.070984,158.88,158.81,0.5934277]
[1729420996568,23.776884,158.88,158.81,0.5934277]
[1729421014892,23.776884,158.86,158.81,0.5934277]
[1729421020287,30.071784,158.86,158.81,0.5934277]
[1729421020469,23.776884,158.86,158.81,0.5934277]
[1729421022772,6.446,158.87,158.81,0.5934277]
[1729421030973,23.776884,158.86,158.81,0.5934277]
[1729421039286,16.5513,158.89,158.81,0.5934277]
[1729421039490,12.81604046,158.9,158.81,0.5934277]
[1729421039700,12.81604046,158.9,158.81,17.1215277]
[1729421039893,12.81604046,158.9,158.82,20.0]
[1729421043001,12.81604046,158.9,158.82,26.1148]
[1729421046582,0.84435394,158.9,158.82,26.1148]
[1729421055006,0.84435394,158.9,158.82,20.0]
[1729421065811,23.776884,158.92,158.82,20.0]
[1729421067418,6.4819,158.91,158.82,20.0]
[1729421067605,30.070384,158.9,158.82,20.0]
[1729421067799,16.0539,158.89,158.81,0.5934277]
[1729421069003,16.0539,158.89,158.81,20.5934277]
[1729421077625,23.776884,158.88,158.81,20.5934277]
[1729421077833,24.57311718,158.88,158.81,20.5934277]
[1729421092724,0.796304,158.92,158.83,20.0]
[1729421094354,23.776884,158.91,158.83,20.0]
[1729421102659,23.776884,158.91,158.81,0.5934277]
[1729421102660,23.776884,158.91,158.81,20.5934277]
[1729421103550,23.776884,158.91,158.81,0.5934277]
[1729421103950,6.1008,158.89,158.81,0.5934277]
[1729421104263,23.776884,158.88,158.81,0.5934277]
[1729421126078,23.776884,158.86,158.81,0.5934277]
[1729421129759,24.64690812,158.86,158.81,0.5934277]
[1729421139089,0.87002412,158.86,158.81,0.5934277]
[1729421141393,0.87002412,158.86,158.81,36.9714277]
[1729421146177,0.87002412,158.86,158.81,42.45255034]
[1729421151489,15.1869,158.91,158.81,42.45255034]
[1729421152586,16.07453886,158.91,158.81,42.45255034]
[1729421160389,0.88763886,158.91,158.83,20.0]
[1729421163291,6.2135,158.93,158.85,20.0]
[1729421167611,6.2135,158.93,158.83,20.0]
[1729421172197,6.2135,158.93,158.85,20.0]
[1729421172419,0.90699112,158.94,158.85,20.0]
[1729421172627,0.90699112,158.94,158.86,16.1398]
[1729421172799,0.90699112,158.94,158.87,20.0]
[1729421179507,16.53499112,158.94,158.85,20.0]
[1729421179687,16.53499112,158.94,158.88,20.0]
[1729421180291,16.53499112,158.94,158.83,20.0]
[1729421181522,16.53499112,158.94,158.85,20.0]
[1729421182026,16.53499112,158.94,158.83,20.0]
[1729421183696,6.4651,158.93,158.83,20.0]
[1729421190729,23.776884,158.92,158.83,20.0]
[1729421197624,6.4651,158.93,158.83,20.0]
[1729421199328,6.4651,158.93,158.83,35.2334]
[1729421199533,16.53499112,158.94,158.85,20.0]
[1729421209659,16.53499112,158.94,158.84,20.0]
[1729421222233,16.53499112,158.94,158.85,23.776884]
[1729421222455,16.53499112,158.94,158.86,20.0]
[1729421227260,16.53499112,158.94,158.86,25.64309743]
[1729421240154,6.0373,158.93,158.86,25.64309743]
[1729421270870,16.53499112,158.94,158.86,25.64309743]
[1729421278898,15.628,158.94,158.86,25.64309743]
[1729421294292,15.628,158.94,158.86,5.64309743]
[1729421294611,15.628,158.94,158.85,6.54931829]
[1729421296205,15.628,158.94,158.86,20.0]
[1729421304417,15.628,158.94,158.84,20.0]
[1729421304800,15.628,158.94,158.86,20.0]
[1729421314514,6.0104,158.93,158.86,20.0]
[1729421374447,6.0104,158.93,158.84,20.0]
[1729421374776,6.0104,158.93,158.86,20.0]
[1729421375457,16.51735225,158.94,158.86,20.0]
[1729421384854,30.111484,158.93,158.85,6.55398367]
[1729421385174,36.403484,158.93,158.82,0.05995686]
[1729421385675,36.403484,158.93,158.82,6.61331358]
[1729421386053,36.403484,158.93,158.83,20.0]
[1729421393057,30.111484,158.93,158.83,20.0]
[1729421395660,30.111484,158.93,158.82,20.05995686]